[Event "20th Delhi GM Open 2023"]
[Site "New Delhi"]
[Date "2023.03.23"]
[Round "1.8"]
[White "Lalit Babu M R"]
[Black "Aditya Jain"]
[Result "1-0"]
[ECO "A56"]
[WhiteElo "2544"]
[BlackElo "1388"]
[Annotator "TA"]
[PlyCount "61"]
[EventDate "2023.03.23"]
[EventType "swiss"]
[EventCountry "IND"]
[SourceTitle "playchess.com"]
[Source "ChessBase"]
[SourceQuality "1"]
[TimeControl "5400+30"]

{[%evp 11,61,65,87,83,89,75,96,83,108,108,137,141,181,188,180,179,181,183,169,181,255,264,288,282,327,313,345,339,595,339,660,653,692,670,773,766,971,949,1117,867,1465,1425,1600,1493,2277,1652,29978,29979,29988,29983,29995,29996]} 1. d4 {[%emt 0:00:05]} Nf6 {[%emt 0:01:21]} 2. c4 {[%emt 0:00:06]} c5 {[%emt 0:00:15]} 3. d5 {[%emt 0:00:05]} e5 {[%emt 0:00:01]} 4. Nc3 {[%emt 0:00:42]} d6 {[%emt 0:00:25]} 5. e4 {[%emt 0:00:47]} Be7 {[%emt 0:00:31]} 6. Nf3 {[%emt 0:00:29]} Nbd7 {[%emt 0:00:18]} 7. g3 {[%emt 0:01:49] White is more active. A56: Czech Benoni.} Nf8 {[%emt 0:01:38]} 8. h4 {[%emt 0:01:50]} h5 {[%emt 0:07:10]} 9. Be2 {[%emt 0:00:46] White is better.} Ng6 {[%emt 0:01:57]} 10. Nh2 {[%emt 0:03:17] [#]} Bh3 $146 {[%emt 0:04:31]} ({Predecessor:} 10... Nf8 11. Nf1 g6 12. Ne3 N8h7 13. Bd2 Bd7 14. Qc2 a6 15. f3 Rb8 16. a4 b6 17. Ra3 Bf8 18. Ned1 Bg7 19. Nf2 Qc8 {½-½ Krak,T (2301)-Krajnak,M (2229) SVK-chT1E 1314 2013 (2.4)}) 11. Bg5 {[%emt 0:00:34]} Nxe4 {[%emt 0:17:47]} 12. Nxe4 {[%emt 0:00:50] Hoping for Nf3.} Bg2 {[%emt 0:00:02] [#] Prevents Nf3.} 13. Bf3 $1 {[%emt 0:01:27]} Bxh1 {[%emt 0:01:25]} 14. Bxh1 {[%emt 0:00:09]} Bxg5 {[%emt 0:00:40]} 15. Nxg5 {[%emt 0:00:11]} Qa5+ {[%emt 0:03:43] Black is weak on the light squares} (15... Nf8 $142 16. Bg2 g6) 16. Kf1 $18 {[%emt 0:00:22]} Qb4 {[%emt 0:01:07]} 17. b3 {[%emt 0:00:43]} Nf8 {[%emt 0:16:30]} 18. Qd3 {[%emt 0:01:55]} Nd7 {[%emt 0:03:45]} 19. Re1 {[%emt 0:00:33]} b5 $2 {[%emt 0:06:26]} (19... g6 20. f4 b5) 20. cxb5 {[%emt 0:01:29]} Qd4 $2 {[%emt 0:00:21]} (20... a6 21. bxa6 Qb6) 21. Qf5 {[%emt 0:01:12]} O-O-O {[%emt 0:03:29]} 22. Nhf3 {[%emt 0:01:30]} Qxd5 {[%emt 0:02:34]} 23. Bg2 {[%emt 0:00:34][%cal Of3e5] aiming for Nxe5!} ({Less strong is} 23. Nxf7 Rdf8 $16) 23... g6 {[%emt 0:02:52]} 24. Qc2 {[%emt 0:00:12]} e4 {[%emt 0:01:09]} 25. Nxe4 {[%emt 0:00:16] Strongly threatening Rd1.} Ne5 {[%emt 0:01:32]} 26. Rd1 {[%emt 0:01:21]} Qe6 {[%emt 0:03:27] [#]} 27. Nxd6+ $1 {[%emt 0:00:45][%mdl 576] Remove Defender, Decoy} Rxd6 {[%emt 0:01:06]} (27... Kb8 28. Qxc5) 28. Qxc5+ {[%emt 0:00:03]} Kd7 {[%emt 0:00:16]} 29. Nxe5+ {[%emt 0:00:27] White mates.} Ke7 {[%emt 0:01:42]} 30. Qc7+ {[%emt 0:00:06]} Rd7 {[%emt 0:01:35]} 31. Rxd7+ {[%emt 0:00:06] Black got outplayed after the opening.   Weighted Error Value: White=0.22 (precise) /Black=0.88} 1-0

[Event "20th Delhi GM Open 2023"]
[Site "New Delhi"]
[Date "2023.03.23"]
[Round "1.9"]
[White "Heet Baldawa"]
[Black "Krasenkow, Michal"]
[Result "0-1"]
[ECO "B08"]
[WhiteElo "1224"]
[BlackElo "2527"]
[Annotator "TA"]
[PlyCount "76"]
[EventDate "2023.03.23"]
[EventType "swiss"]
[EventCountry "IND"]
[SourceTitle "playchess.com"]
[Source "ChessBase"]
[SourceQuality "1"]
[TimeControl "5400+30"]

{[%evp 17,76,26,28,22,45,37,38,22,30,27,32,25,30,28,33,33,29,-18,0,-25,-23,-22,-21,-28,-24,-20,-25,-62,-60,-175,-177,-177,-187,-219,-159,-229,-208,-180,-102,-277,-277,-385,-379,-438,-438,-414,-434,-423,-421,-938,-941,-949,-939,-931,-881,-1196,-1175,-3382,-3047,-5581,-3295]} 1. e4 {[%emt 0:00:03]} g6 {[%emt 0:00:18]} 2. d4 {[%emt 0:00:22]} Bg7 {[%emt 0:00:06]} 3. Nf3 {[%emt 0:01:40]} d6 {[%emt 0:00:04]} 4. Bc4 {[%emt 0:00:43]} Nf6 {[%emt 0:00:07]} 5. Nc3 {[%emt 0:00:06]} O-O {[%emt 0:00:23]} 6. O-O {[%emt 0:02:00]} Bg4 {[%emt 0:01:18]} 7. Be3 {[%emt 0:04:56]} Nc6 {[%emt 0:00:52]} 8. h3 {[%emt 0:04:12]} Bxf3 {[%emt 0:00:53]} 9. Qxf3 {[%emt 0:00:32]} e5 {[%emt 0:00:03]} 10. d5 {[%emt 0:01:14] B08: Pirc Defence: Classical System.} Ne7 {[%emt 0:04:25]} 11. Bg5 {[%emt 0:01:38]} Nd7 {[%emt 0:00:53]} 12. Rad1 {[%emt 0:04:09] Black is weak on the light squares. White is slightly better.} f6 {[%emt 0:00:41] [#]} 13. Bd2 $146 {[%emt 0:03:19]} ({Predecessor:} 13. Be3 f5 14. Bg5 Nf6 15. Qe3 f4 16. Qe2 h5 17. Nb1 Nh7 18. Bxe7 Qxe7 19. Nd2 Ng5 20. Qd3 f3 21. Nxf3 Rxf3 22. gxf3 Nxh3+ 23. Kh2 Nf4 {0-1 Repas,M-Pusec,P SVK-chT3A 9697 1996 (4)}) 13... f5 {[%emt 0:00:13]} 14. Qd3 {[%emt 0:01:49]} Rf7 {[%emt 0:02:38]} 15. f3 {[%emt 0:06:21]} a6 {[%emt 0:00:41]} 16. a4 {[%emt 0:01:07]} Qf8 {[%emt 0:01:35]} 17. Bg5 {[%emt 0:02:11]} (17. g4 {is more appropriate.}) 17... Bh6 $11 {[%emt 0:01:05]} 18. Qd2 {[%emt 0:10:59]} Bxg5 {[%emt 0:01:00]} 19. Qxg5 {[%emt 0:02:37]} f4 {[%emt 0:03:57]} 20. Qh4 {[%emt 0:05:54] [#]} g5 $1 {[%emt 0:03:27]} 21. Qf2 {[%emt 0:07:52]} (21. Qxg5+ $2 Rg7 22. Qh4 Rg3 $19) 21... h5 {[%emt 0:00:26][%cal Bh7h5,Bh5h4][%mdl 32]} 22. Be2 {[%emt 0:08:10]} Nf6 {[%emt 0:00:16][%cal Bd7f6,Bf6h5,Bh5g3][%mdl 32]} 23. g4 {[%emt 0:08:33]} (23. Qe1 $15) 23... fxg3 $19 {[%emt 0:00:22]} 24. Qxg3 {[%emt 0:00:15]} h4 {[%emt 0:04:23]} 25. Qg2 {[%emt 0:03:39]} (25. Qxg5+ $2 Rg7 26. f4 exf4 $19) 25... Nh5 {[%emt 0:00:09]} 26. Qg4 {[%emt 0:05:33] [#]} (26. Bd3 $17 {might work better.}) 26... Ng3 $1 {[%emt 0:02:03]} (26... Nf4 27. Bc4 $17) 27. Rf2 {[%emt 0:00:28]} (27. Qxg5+ $2 {too greedy.} Rg7 28. Qxh4 Ngf5+ $19) 27... Qh6 {[%emt 0:00:09]} (27... Kh8 $19 {Strongly threatening ...Rg7.} 28. Bc4 (28. Qxg5 $2 {is the wrong capture.} Nxe2+ 29. Kh2 Nxc3 $19) 28... Ng6) 28. Rg2 $2 {[%emt 0:04:17] White does not recover from this.} (28. Bc4 $17) 28... Ng6 {[%emt 0:00:20][%cal Be7g6,Bg6f4,Bf4h5,Bh5f6][%mdl 32]} 29. Qe6 {[%emt 0:01:20]} Kf8 {[%emt 0:00:32][%cal Og5g4] And now ...g4! would win.} 30. Rf2 {[%emt 0:02:02]} Re8 {[%emt 0:03:09]} 31. Qg4 {[%emt 0:01:57]} Nf4 {[%emt 0:00:04]} 32. Re1 {[%emt 0:01:29] Black is clearly winning.} Nfh5 {[%emt 0:00:09] White must now prevent ...Nf6. A dynamic duo of knights.} 33. Bd1 {[%emt 0:02:18]} (33. f4 $142 exf4 34. Qf3) 33... Nf6 {[%emt 0:00:08]} 34. Qe6 {[%emt 0:01:33]} Rxe6 {[%emt 0:00:49]} 35. dxe6 {[%emt 0:00:11]} Rg7 {[%emt 0:00:11]} 36. Ne2 {[%emt 0:00:34]} Nfh5 {[%emt 0:00:06]} 37. Nxg3 {[%emt 0:00:33]} hxg3 {[%emt 0:00:26]} 38. Rg2 {[%emt 0:00:53]} Qxe6 {[%emt 0:02:22] Weighted Error Value: White=1.22/Black=0.07 (flawless)} 0-1

[Event "20th Delhi GM Open 2023"]
[Site "New Delhi"]
[Date "2023.03.24"]
[Round "2.1"]
[White "Sethuraman, S.P."]
[Black "Ayaan Garg"]
[Result "1-0"]
[ECO "E07"]
[WhiteElo "2639"]
[BlackElo "1523"]
[Annotator "TA"]
[PlyCount "67"]
[EventDate "2023.03.23"]
[EventType "swiss"]
[EventCountry "IND"]
[SourceTitle "playchess.com"]
[Source "ChessBase"]
[SourceQuality "1"]
[TimeControl "5400+30"]

{[%evp 18,66,15,16,16,13,21,16,14,9,3,6,14,-22,-40,-32,8,5,30,24,29,21,22,20,28,15,38,23,110,110,135,133,131,133,136,30,361,354,399,426,419,435,433,422,408,416,404,360,29987,29985,29999]} 1. Nf3 {[%emt 0:00:38]} Nf6 {[%emt 0:00:17]} 2. c4 {[%emt 0:00:09]} e6 {[%emt 0:00:36]} 3. Nc3 {[%emt 0:00:20]} d5 {[%emt 0:00:39]} 4. d4 {[%emt 0:00:23]} Be7 {[%emt 0:00:22]} 5. g3 {[%emt 0:01:55]} O-O {[%emt 0:00:48]} 6. Bg2 {[%emt 0:00:06]} c6 {[%emt 0:00:45]} 7. O-O {[%emt 0:00:29]} Nbd7 {[%emt 0:00:40]} 8. Qd3 {[%emt 0:00:50]} b6 {[%emt 0:02:26]} 9. e4 {[%emt 0:02:31]} Bb7 {[%emt 0:14:01]} 10. Rd1 {[%emt 0:14:05]} dxc4 {[%emt 0:21:00] E07: Closed Catalan: Main Line (5 Nf3 0-0 6 0-0 Nbd7).} 11. Qxc4 {[%emt 0:00:13]} b5 {[%emt 0:00:11]} 12. Qe2 {[%emt 0:04:40]} b4 {[%emt 0:05:28] The position is equal.} 13. Na4 {[%emt 0:00:09]} Qa5 {[%emt 0:01:21]} 14. b3 {[%emt 0:00:07]} c5 {[%emt 0:08:52] [#]} 15. Nd2 $146 {[%emt 0:24:48]} ({Predecessor:} 15. d5 exd5 16. exd5 Rfe8 17. Nd2 Nb6 18. Nxb6 axb6 19. Nc4 Qa6 20. Qc2 Rad8 21. Ne3 {1-0 Savchenko,S (2563)-Ravia,M (2386) Tel Aviv After Holidays GM 2003 (2)}) 15... cxd4 {[%emt 0:07:01]} 16. Nc4 {[%emt 0:00:15][%csl LRa5,LRd4] Dodges Ne5} Qb5 {[%emt 0:00:26]} 17. Rxd4 {[%emt 0:00:28]} Nc5 {[%emt 0:01:51]} 18. Nxc5 $1 {[%emt 0:00:39]} Bxc5 {[%emt 0:00:17]} 19. Rd1 {[%emt 0:00:04]} Rfd8 {[%emt 0:18:14]} 20. Bb2 {[%emt 0:01:17]} Ne8 {[%emt 0:00:21]} 21. Rac1 {[%emt 0:02:46]} Rac8 {[%emt 0:01:23]} 22. h3 {[%emt 0:03:59]} f6 {[%emt 0:03:03]} (22... a5 $11) 23. Qg4 $16 {[%emt 0:00:20]} e5 {[%emt 0:01:12] [#]} 24. Bf1 $1 {[%emt 0:07:49]} Rxd1 {[%emt 0:04:59]} 25. Rxd1 {[%emt 0:00:06]} Qc6 {[%emt 0:00:22] [#]} 26. Rd5 {[%emt 0:10:29] White is more active.} (26. Na5 $1 $16 Bxf2+ {[%mdl 64] Decoy} 27. Kxf2 Qb6+ 28. Ke1 Qe3+ 29. Qe2 Qxg3+ 30. Qf2 Qxf2+ 31. Kxf2 Bxe4 32. Ke3) 26... h5 $2 {[%emt 0:03:34][%mdl 8192] A mistake that costs the game.} 27. Qf5 $18 {[%emt 0:00:48] aiming for Na5.} (27. Qxh5 Qe6 $16) 27... Bb6 {[%emt 0:02:13]} 28. Nxb6 {[%emt 0:02:18]} (28. Qxh5 Qe6 29. Rd2 Bc7 $18) 28... Qxb6 {[%emt 0:00:27]} 29. Rb5 {[%emt 0:01:05]} Qc6 {[%emt 0:00:30]} 30. Bc4+ {[%emt 0:01:20]} (30. Rxb4 Nd6 31. Qxh5 Qc2 $16) 30... Kf8 {[%emt 0:00:08]} 31. Qxh5 {[%emt 0:00:26][%csl Gc4][%cal Rh5f7]} ({Weaker is} 31. Rxe5 Nd6 32. Qxh5 Nxc4 33. Qh8+ Kf7 34. Qh5+ Kf8 35. Qh8+ Kf7 36. Qh5+ Kf8 $11) (31. Qh7 Ke7 $16) 31... Qd7 {[%emt 0:01:42][%cal Oc8c4] Dodges Qf7+} 32. Rxb4 {[%emt 0:00:36]} ({Stronger than} 32. Qh7 Rxc4 33. bxc4 Qd1+ 34. Kh2 Bc6 $11) 32... Bxe4 {[%emt 0:00:30]} (32... Rxc4 $18 33. Rxc4 Kg8) 33. Ba3 {[%emt 0:00:14] This pair of bishops is nice.} Qd2 {[%emt 0:00:48]} 34. Qf7# {[%emt 0:00:13] Weighted Error Value: White=0.09 (flawless) /Black=0.51} 1-0

[Event "20th Delhi GM Open 2023"]
[Site "New Delhi"]
[Date "2023.03.24"]
[Round "2.2"]
[White "Samuel Ajit"]
[Black "Aravindh, Chithambaram VR."]
[Result "0-1"]
[ECO "B23"]
[WhiteElo "1521"]
[BlackElo "2607"]
[Annotator "TA"]
[PlyCount "92"]
[EventDate "2023.03.23"]
[EventType "swiss"]
[EventCountry "IND"]
[SourceTitle "playchess.com"]
[Source "ChessBase"]
[SourceQuality "1"]
[TimeControl "5400+30"]

{[%evp 12,92,-19,-6,14,-15,-22,-12,-11,-21,-8,-12,-6,-20,-8,-8,-8,-8,-8,-8,-8,-7,-7,-27,-31,-102,-101,-119,-118,-85,-97,-105,-72,-204,-158,-213,-190,-258,-223,-297,-292,-440,-430,-479,-475,-568,-556,-863,-830,-1070,-992,-993,-994,-1732,-1842,-2141,-1956,-2118,-1865,-2472,-2472,-1732,-1000,-29976,-29944,-29986,-29987,-29987,-29988,-29988,-29989,-29989,-29989,-29990,-29989,-29989,-29990,-29990,-29990,-29990,-29990,-29991,-29992]} 1. e4 {[%emt 0:00:05]} c5 {[%emt 0:00:10]} 2. Nc3 {[%emt 0:00:12]} Nc6 {[%emt 0:00:27]} 3. f4 {[%emt 0:00:53]} g6 {[%emt 0:00:31]} 4. Nf3 {[%emt 0:00:23]} Bg7 {[%emt 0:00:08]} 5. Bb5 {[%emt 0:00:53]} Nd4 {[%emt 0:00:35]} 6. O-O {[%emt 0:00:52]} Nxb5 {[%emt 0:05:47]} 7. Nxb5 {[%emt 0:00:11]} d5 {[%emt 0:00:37] B23: Closed Sicilian: Lines without g3.} 8. exd5 {[%emt 0:06:26]} a6 {[%emt 0:00:21]} 9. Nc3 {[%emt 0:00:53]} Nf6 {[%emt 0:01:15][%cal Bg8f6,Bf6d5,Bd5c3][%mdl 32] The position is equal.} 10. d4 {[%emt 0:02:03]} Nxd5 $1 {[%emt 0:05:30] The main line 10...Nxd5 scores better than 10...c4.} 11. dxc5 {[%emt 0:02:54]} Nxc3 {[%emt 0:00:13]} 12. Qxd8+ {[%emt 0:00:19]} Kxd8 {[%emt 0:00:04]} 13. bxc3 {[%emt 0:00:09]} Bxc3 {[%emt 0:03:49]} 14. Rb1 {[%emt 0:01:56]} Kc7 {[%emt 0:00:22]} 15. Rb3 {[%emt 0:05:49]} Bf6 {[%emt 0:02:41]} 16. Ng5 {[%emt 0:05:59]} Bf5 {[%emt 0:05:24] [#]} 17. Nxf7 $146 {[%emt 0:10:11]} (17. Re1 {with more complications.} Rhd8 18. Nxf7 Bxc2 19. Rb6) ({Predecessor:} 17. Re1 Rhd8 18. Nxf7 Bxc2 19. Rb6 Rd1 20. Rxd1 Bxd1 21. Bb2 Bxb2 22. Rxb2 Rf8 23. Ng5 {½-½ Broadway,D (2280)-Mason,I (2286) ENG MT-Bowyer email 2017}) 17... Bxc2 {[%emt 0:00:13] [#] ...Rhf8 is the strong threat. A strong pair of Bishops.} 18. Nxh8 {[%emt 0:06:14]} ({White should try} 18. Rg3 $15) 18... Bxb3 $17 {[%emt 0:00:27]} 19. axb3 {[%emt 0:01:46]} Bd4+ {[%emt 0:01:06]} ({Weaker is} 19... Bxh8 20. Re1 $15) (19... Rxh8 $6 20. Kf2 $15) 20. Kh1 {[%emt 0:00:09]} Rxh8 {[%emt 0:00:11][%mdl 4096] Endgame KRB-KRB} 21. Ba3 {[%emt 0:02:51]} Rd8 {[%emt 0:06:19]} 22. Re1 {[%emt 0:12:01] This move loses the game for White.} (22. g4 $17) 22... e5 {[%emt 0:04:39]} 23. fxe5 {[%emt 0:02:11]} (23. Bb4 $17 Rd5 24. fxe5) 23... Bc3 $19 {[%emt 0:00:14][%mdl 64] [#] Deflection} 24. Rf1 {[%emt 0:01:47]} (24. Rb1 $142) 24... Bxe5 {[%emt 0:00:07]} 25. g3 {[%emt 0:10:36]} Rd3 {[%emt 0:04:47]} 26. Re1 {[%emt 0:06:16]} (26. Rb1 {is a better defense.}) 26... Rxb3 {[%emt 0:01:02]} 27. Rxe5 {[%emt 0:00:10]} Rxa3 {[%emt 0:00:03] KR-KR} 28. Re7+ {[%emt 0:00:12]} Kc6 {[%emt 0:00:06]} 29. Rxh7 {[%emt 0:00:07]} a5 {[%emt 0:00:25]} ({Stronger than} 29... Kxc5 30. Rxb7 a5 31. Rc7+ Kb5 32. Rb7+ Ka6 33. Rg7 $17) 30. Rg7 {[%emt 0:09:21]} a4 {[%emt 0:00:12]} ({Not} 30... Kxc5 31. Rxb7 a4 32. Rg7 $17) 31. Rxg6+ {[%emt 0:00:25]} Kxc5 {[%emt 0:00:06] Strongly threatening ...Rd3.} 32. Rg8 {[%emt 0:04:59]} Rd3 {[%emt 0:02:36] aiming for ...a3.} 33. Ra8 {[%emt 0:04:08]} a3 {[%emt 0:00:23]} 34. Kg2 {[%emt 0:01:16]} Kb4 {[%emt 0:08:26] ...Rd2+ would be deadly.} 35. h4 {[%emt 0:00:54]} Kb3 {[%emt 0:00:33] And now ...Rd4 would win.} 36. h5 {[%emt 0:01:02]} a2 {[%emt 0:00:16]} 37. g4 {[%emt 0:01:35]} Rd6 {[%emt 0:05:55] Black mates.} 38. Kg3 {[%emt 0:00:39]} Ra6 {[%emt 0:00:13]} 39. Rxa6 {[%emt 0:00:37]} bxa6 {[%emt 0:00:04] KPP-KPP} 40. g5 {[%emt 0:00:21]} a1=Q {[%emt 0:00:05]} (40... a1=B $2 41. h6 Be5+ 42. Kg4 $18) 41. Kg4 {[%emt 0:00:17]} Qd1+ {[%emt 0:00:28]} 42. Kh4 {[%emt 0:00:10]} Qe1+ {[%emt 0:00:11]} 43. Kg4 {[%emt 0:00:39]} Qe4+ {[%emt 0:00:05]} 44. Kg3 {[%emt 0:00:07]} Qf5 {[%emt 0:00:04]} 45. Kh4 {[%emt 0:00:39]} Qf4+ {[%emt 0:00:06]} 46. Kh3 {[%emt 0:00:05]} Qxg5 {[%emt 0:00:06] Weighted Error Value: White=0.79/Black=0.12 (very precise)} 0-1

[Event "20th Delhi GM Open 2023"]
[Site "New Delhi"]
[Date "2023.03.24"]
[Round "2.3"]
[White "Pantsulaia, Levan"]
[Black "Natura Bethi"]
[Result "1-0"]
[ECO "A09"]
[WhiteElo "2597"]
[BlackElo "1521"]
[Annotator "TA"]
[PlyCount "69"]
[EventDate "2023.03.23"]
[EventType "swiss"]
[EventCountry "IND"]
[SourceTitle "playchess.com"]
[Source "ChessBase"]
[SourceQuality "1"]
[TimeControl "5400+30"]

{[%evp 9,69,-13,-6,-25,-14,-10,-12,-8,-4,-16,-14,-8,-10,-35,11,19,19,21,4,22,51,54,45,52,52,54,58,58,48,45,59,62,62,52,61,21,27,0,55,58,75,76,86,80,106,106,203,200,237,219,275,265,389,282,347,345,382,384,382,354,354,340]} 1. Nf3 {[%emt 0:00:07] Adhiban,Baskaran} Nf6 {[%emt 0:00:38]} 2. g3 {[%emt 0:00:08]} d5 {[%emt 0:00:52]} 3. Bg2 {[%emt 0:00:08]} c5 {[%emt 0:01:01][%cal Bc7c5,Bc5b4,Bb4b3][%mdl 32]} 4. c4 {[%emt 0:00:28]} d4 {[%emt 0:01:09]} 5. b4 {[%emt 0:00:21]} cxb4 {[%emt 0:01:41]} 6. a3 {[%emt 0:00:06] [#] A09: Réti Opening: 1 Nf3 d5 2 c4.} b3 {[%emt 0:02:20]} 7. d3 {[%emt 0:03:28]} (7. O-O Nc6) 7... Nc6 {[%emt 0:01:14]} 8. Nbd2 {[%emt 0:02:30] The position is equal.} e5 {[%emt 0:04:35]} 9. O-O {[%emt 0:00:11]} Be7 {[%emt 0:01:11][%cal Ob3b2]} 10. Nxb3 {[%emt 0:05:47]} O-O {[%emt 0:02:32]} 11. Bg5 $5 {[%emt 0:02:39][%mdl 4] [#] Exploring less charted territory.} Nd7 $146 {[%emt 0:05:19]} (11... Bg4 $15 {should be considered.}) ({Predecessor:} 11... Rb8 12. Ne1 Bd7 13. Nc2 b5 14. Nd2 a6 15. Nb4 Nxb4 16. axb4 bxc4 17. Nxc4 Bb5 18. Nxe5 Bxb4 {½-½ Adhiban,B (2655)-Anand,V (2767) Tata Steel-A 80th 2018 (4)}) 12. Bxe7 $11 {[%emt 0:00:09]} Qxe7 {[%emt 0:00:17]} 13. Ne1 {[%emt 0:00:58]} Re8 {[%emt 0:05:06]} 14. Nc2 {[%emt 0:00:27]} Nc5 {[%emt 0:07:10]} 15. Nxc5 {[%emt 0:06:01]} Qxc5 {[%emt 0:00:19]} 16. Rb1 {[%emt 0:00:43]} Rb8 {[%emt 0:05:44]} 17. Qd2 {[%emt 0:03:25]} Bd7 {[%emt 0:03:32]} 18. f4 $1 {[%emt 0:06:28]} a6 {[%emt 0:16:35]} 19. Nb4 {[%emt 0:05:28]} (19. fxe5 {seems wilder.} Qxe5 20. Bd5 Be6 21. Be4) 19... Nxb4 {[%emt 0:04:22]} 20. Qxb4 {[%emt 0:06:23]} Qxb4 {[%emt 0:07:06]} 21. Rxb4 {[%emt 0:00:08]} b5 {[%emt 0:04:14]} 22. cxb5 {[%emt 0:06:48]} Rxb5 {[%emt 0:02:34]} 23. Rxb5 {[%emt 0:04:55]} Bxb5 $14 {[%emt 0:01:09][%mdl 4096] Endgame KRB-KRB} (23... axb5 $11 24. fxe5 Rxe5) 24. Bd5 {[%emt 0:01:26]} Rd8 {[%emt 0:02:16] [#]} 25. Bb3 {[%emt 0:05:43]} e4 {[%emt 0:02:48]} 26. a4 {[%emt 0:00:19]} Bc6 {[%emt 0:01:33]} 27. Rc1 {[%emt 0:00:16]} Ba8 {[%emt 0:03:02]} (27... Be8 $16 {keeps fighting.}) 28. Rc7 $18 {[%emt 0:02:31]} Rf8 {[%emt 0:01:00]} 29. Bc4 {[%emt 0:06:48]} g6 {[%emt 0:03:45]} 30. Bxa6 {[%emt 0:00:56]} Bd5 {[%emt 0:01:57]} (30... Rb8 $142 31. dxe4 Rb1+ 32. Kf2 Bxe4) 31. Rd7 {[%emt 0:02:20]} Ra8 {[%emt 0:00:50]} 32. Bb5 {[%emt 0:01:02] Inhibits Bc6.} ({Less strong is} 32. Rxd5 Rxa6 33. Rxd4 (33. dxe4 Rxa4 34. Kf1 h5 $16) 33... exd3 34. exd3 Kf8 $18) 32... Bb3 {[%emt 0:01:19]} 33. Rxd4 {[%emt 0:00:14] White is winning.} ({Not} 33. dxe4 Bxa4 34. Bxa4 Rxa4 $16) 33... exd3 {[%emt 0:00:10]} 34. Rxd3 {[%emt 0:00:16]} ({Weaker is} 34. exd3 Kf8 35. Kf2 Ke7 $18) 34... Be6 {[%emt 0:01:40]} 35. Ra3 {[%emt 0:01:05] Weighted Error Value: White=0.08 (flawless) /Black=0.24 (precise)} 1-0

[Event "20th Delhi GM Open 2023"]
[Site "New Delhi"]
[Date "2023.03.24"]
[Round "2.4"]
[White "Yashvi Jain"]
[Black "Kobalia, Mikhail"]
[Result "0-1"]
[ECO "A89"]
[WhiteElo "1518"]
[BlackElo "2577"]
[Annotator "TA"]
[PlyCount "68"]
[EventDate "2023.03.23"]
[EventType "swiss"]
[EventCountry "IND"]
[SourceTitle "playchess.com"]
[Source "ChessBase"]
[SourceQuality "1"]
[TimeControl "5400+30"]

{[%evp 14,68,35,6,35,33,50,8,69,0,0,0,0,0,31,0,0,-2,-16,-24,-14,-29,0,0,0,0,0,0,0,-8,-13,-15,-12,-64,52,-75,-63,-106,-90,-843,-834,-902,-890,-1225,-1223,-1203,-1179,-1383,-1342,-1571,-1654,-1500,-1608,-1592,-1552,-1543,-1475]} 1. d4 {[%emt 0:00:19]} f5 {[%emt 0:00:14]} 2. Nf3 {[%emt 0:00:07]} Nf6 {[%emt 0:00:04]} 3. g3 {[%emt 0:00:20]} g6 {[%emt 0:00:04]} 4. Bg2 {[%emt 0:00:06]} Bg7 {[%emt 0:00:04]} 5. O-O {[%emt 0:00:22]} O-O {[%emt 0:00:03]} 6. c4 {[%emt 0:00:12]} d6 {[%emt 0:00:05]} 7. Nc3 {[%emt 0:00:06]} Nc6 {[%emt 0:00:05]} 8. Qb3 {[%emt 0:00:42]} (8. d5 $5 {[%cal Rd5c6]} Na5 9. Qd3 $11) 8... Kh8 {[%emt 0:03:23] A89: Dutch Defence: Leningrad System: 5 Nf3 0-0 6 0-0 d6 7 Nc3 Nc6.} 9. Rd1 {[%emt 0:00:08]} a6 10. Bd2 {[%emt 0:00:59] [#]} Nd7 $146 {[%emt 0:06:56]} (10... Bd7 $11) ({Predecessor:} 10... Ne4 11. Be1 Rb8 12. Qc2 Nxc3 13. Bxc3 Qe8 14. d5 Ne5 15. Nxe5 dxe5 16. b4 Qf7 {1-0 Maciol,R (2239)-Vassiliou,C (1986) Runcorn op 2010 (2)}) 11. Be1 {[%emt 0:00:37]} ({White should try} 11. Nd5 $14) 11... e5 $11 {[%emt 0:01:23]} 12. dxe5 {[%emt 0:01:02]} dxe5 {[%emt 0:00:08]} 13. e3 {[%emt 0:05:39]} h6 {[%emt 0:08:50]} 14. Qa4 {[%emt 0:03:39]} Qf6 {[%emt 0:06:35]} 15. Nd5 {[%emt 0:00:54][%csl LRc7,LRf6]} Qf7 {[%emt 0:00:32]} 16. Qa3 {[%emt 0:05:35]} (16. Nxc7 $2 {loses.} Nb6 17. Qc2 Qxc7 $19) 16... e4 {[%emt 0:04:51]} 17. Nd4 {[%emt 0:01:16]} Nde5 {[%emt 0:00:09]} 18. Bc3 $36 {[%emt 0:01:11][%mdl 2048] White has the initiative.} Nxc4 {[%emt 0:09:39]} 19. Qc5 {[%emt 0:01:10][%csl LRc4,LRc6]} N6e5 {[%emt 0:08:16] [#] Threatens to win with ...Rd8.} 20. b3 {[%emt 0:05:16]} c6 $1 {[%emt 0:05:39]} (20... b6 $2 21. Qxc7 Bd7 22. bxc4 $18) 21. bxc4 {[%emt 0:05:33]} cxd5 {[%emt 0:00:28]} 22. cxd5 {[%emt 0:00:16]} Bd7 {[%emt 0:01:25]} 23. Qb6 ({White should play} 23. Qd6 $11) 23... Ba4 {[%emt 0:06:28]} (23... Rac8 $1 $15 24. Qb3 Rc4) 24. Rdb1 {[%emt 0:04:49]} (24. Ne6 $1 $14 Bxd1 25. Nxf8 Rxf8 26. Rxd1) 24... Rfc8 $17 {[%emt 0:00:38]} 25. Qa5 {[%emt 0:01:47]} b5 {[%emt 0:00:43] [#] ...Nc4 would be deadly.} 26. d6 $2 {[%emt 0:19:46][%mdl 8192] This move loses the game for White.} (26. Nc6 $17 Nxc6 27. dxc6) 26... Nc4 $1 $19 {[%emt 0:02:20][%csl LRa5,LRd6][%cal Be5c4,Bc4d6,Bd6e4][%mdl 32] Black is clearly winning.} 27. Qb4 {[%emt 0:00:36]} a5 {[%emt 0:00:17][%cal Ba6a5,Ba5b4][%mdl 32]} 28. Nxf5 {[%emt 0:03:40]} axb4 {[%emt 0:00:35]} 29. Bxg7+ {[%emt 0:00:06]} Kh7 {[%emt 0:00:07]} 30. Ne7 {[%emt 0:00:17]} Qxg7 {[%emt 0:00:14]} 31. Bxe4 {[%emt 0:00:40]} Nxd6 {[%emt 0:00:11]} 32. Bxg6+ {[%emt 0:00:28]} Kh8 {[%emt 0:00:09]} 33. Nxc8 {[%emt 0:00:10]} Rxc8 {[%emt 0:00:14]} 34. Bh5 {[%emt 0:00:11]} Ne4 {[%emt 0:00:17] Weighted Error Value: White=0.79/Black=0.14 (very precise)} 0-1